fUSD/lending_fUSD_20250823
["ID","MTS","AMOUNT","RATE_DAILY","PERIOD"]
[381028657,1755955848049,-428.666469,0.000154,2]
[381028658,1755955848058,-428.666469,0.000154,2]
[381028659,1755955848068,-151.0,0.000154,2]
[381028660,1755955848079,-428.666469,0.000154,2]
[381028661,1755955848089,-2728.497295,0.000154,2]
[381028662,1755955848098,-2728.497295,0.000154,2]
[381028663,1755955848108,-2728.497295,0.000154,2]
[381028664,1755955848117,-2728.497295,0.000154,2]
[381028665,1755955848128,-151.0,0.000154,2]
[381028666,1755955848137,-1814.31,0.00015427,2]
[381028667,1755955848147,-185.0,0.0001545,2]
[381028668,1755955848156,-173.09510413,0.00015455,6]
[381028669,1755955848166,-190.14404144,0.00015488,7]
[381028670,1755955848177,-190.14404144,0.00015488,7]
[381028671,1755955848186,-193.28470754,0.00015491,2]
[381028672,1755955848196,-730.53037813,0.00015491,2]
[381028673,1755955848206,-3292.0,0.00015505,2]
[381028674,1755955848216,-736.0,0.00015538,2]
[381028675,1755955848231,-500.0,0.00015582,2]
[381028676,1755955848241,-454.0,0.0001559,2]
[381028677,1755955848251,-186.52075508,0.00015599,2]
[381028678,1755955848260,-2005.8657454,0.000156,2]
[381028679,1755955848269,-400.0,0.00015616,2]
[381028680,1755955848279,-2000.0,0.00015616,2]
[381028681,1755955848289,-2000.0,0.00015616,2]
[381028682,1755955848298,-2000.0,0.00015616,2]
[381028683,1755955848308,-2000.0,0.00015616,2]
[381028684,1755955848317,-2000.0,0.00015616,2]
[381028685,1755955848328,-179.68,0.00015622,2]
[381028686,1755955848338,-408.48,0.00015627,2]
[381028687,1755955848348,-161.82649118,0.00015673,2]
[381028688,1755955848358,-298.26089446,0.00015685,2]
[381028689,1755955848368,-346.92554585,0.00015685,2]
[381028690,1755955848378,-747.8093786,0.00015686,2]
[381028691,1755955848387,-151.0,0.00015699,2]
[381028692,1755955848397,-151.0,0.00015699,2]
[381028693,1755955848406,-151.0,0.00015699,2]
[381028694,1755955848416,-151.0,0.00015699,2]
[381028695,1755955848426,-151.0,0.00015699,2]
[381028696,1755955848435,-151.0,0.00015699,2]
[381028697,1755955848445,-151.0,0.00015699,2]
[381028698,1755955848455,-201.7156,0.00015699,2]
[381028699,1755955848465,-151.0,0.00015699,2]
[381028700,1755955848474,-174.51578,0.00015699,2]
[381028701,1755955848483,-151.0,0.00015699,2]
[381028702,1755955848493,-151.0,0.00015699,2]
[381028703,1755955848503,-151.0,0.00015699,2]
[381028704,1755955848512,-151.0,0.00015699,2]
[381028705,1755955848522,-616.466985,0.00015699,2]
[381028706,1755955848532,-616.466985,0.00015699,2]
[381028707,1755955848544,-616.466985,0.00015699,2]
[381028708,1755955848553,-616.466985,0.00015699,2]
[381028709,1755955848563,-151.0,0.00015699,2]
[381028710,1755955848573,-151.0,0.00015699,2]
[381028711,1755955848583,-151.0,0.00015699,2]
[381028712,1755955848593,-151.45704,0.00015699,2]
[381028713,1755955848602,-151.0,0.00015699,2]
[381028714,1755955848613,-151.0,0.00015699,2]
[381028715,1755955848622,-151.0,0.00015699,2]
[381028716,1755955848632,-151.0,0.00015699,2]
[381028717,1755955848642,-151.0,0.00015699,2]
[381028718,1755955848651,-151.0,0.00015699,2]
[381028719,1755955848661,-151.0,0.00015699,2]
[381028720,1755955848671,-281.878533,0.00015699,2]
[381028721,1755955848681,-151.0,0.00015699,2]
[381028722,1755955848691,-151.0,0.00015699,2]
[381028723,1755955848701,-151.0,0.00015699,2]
[381028724,1755955848710,-151.0,0.00015699,2]
[381028725,1755955848720,-151.0,0.00015699,2]
[381028726,1755955848730,-151.0,0.00015699,2]
[381028727,1755955848740,-151.0,0.00015699,2]
[381028728,1755955848749,-151.0,0.00015699,2]
[381028729,1755955848759,-151.0,0.00015699,2]
[381028730,1755955848768,-151.0,0.00015699,2]
[381028731,1755955848778,-160.429263,0.00015699,2]
[381028732,1755955848787,-151.0,0.00015699,2]
[381028733,1755955848797,-160.429263,0.00015699,2]
[381028734,1755955848807,-160.429263,0.00015699,2]
[381028735,1755955848816,-151.0,0.00015699,2]
[381028736,1755955848826,-160.429263,0.00015699,2]
[381028737,1755955848837,-151.0,0.00015699,2]
[381028738,1755955848847,-151.0,0.00015699,2]
[381028739,1755955848856,-151.0,0.00015699,2]
[381028740,1755955848866,-151.0,0.00015699,2]
[381028741,1755955848876,-151.0,0.00015699,2]
[381028742,1755955848886,-151.0,0.00015699,2]
[381028743,1755955848896,-151.0,0.00015699,2]
[381028744,1755955848906,-151.0,0.00015699,2]
[381028745,1755955848915,-201.228118,0.00015699,2]
[381028746,1755955848925,-151.0,0.00015699,2]
[381028747,1755955849039,-151.0,0.00015699,2]
[381028748,1755955849049,-151.0,0.00015699,2]
[381028749,1755955849059,-151.0,0.00015699,2]
[381028750,1755955849068,-201.228118,0.00015699,2]
[381028751,1755955849079,-151.0,0.00015699,2]
[381028752,1755955849089,-151.0,0.00015699,2]
[381028753,1755955849099,-151.0,0.00015699,2]
[381028754,1755955849108,-151.0,0.00015699,2]
[381028755,1755955849118,-201.228118,0.00015699,2]
[381028756,1755955849127,-151.0,0.00015699,2]
[381028757,1755955849137,-151.0,0.00015699,2]
[381028758,1755955849146,-201.228118,0.00015699,2]
[381028759,1755955849156,-262.037975,0.00015699,2]
[381028760,1755955849165,-151.0,0.00015699,2]
[381028761,1755955849175,-151.0,0.00015699,2]
[381028762,1755955849184,-151.0,0.00015699,2]
[381028763,1755955849194,-285.202392,0.00015699,2]
[381028764,1755955849204,-151.0,0.00015699,2]
[381028765,1755955849214,-151.0,0.00015699,2]
[381028766,1755955849224,-151.0,0.00015699,2]
[381028767,1755955849234,-151.0,0.00015699,2]
[381028768,1755955849243,-151.0,0.00015699,2]
[381028769,1755955849252,-151.0,0.00015699,2]
[381028770,1755955849262,-151.0,0.00015699,2]
[381028771,1755955849272,-151.0,0.00015699,2]
[381028772,1755955849282,-151.0,0.00015699,2]
[381028773,1755955849292,-435.273855,0.00015699,2]
[381028774,1755955849301,-12000.0,0.00015699,2]
[381028775,1755955849311,-151.0,0.00015699,2]
[381028776,1755955849320,-435.273855,0.00015699,2]
[381028777,1755955849331,-12000.0,0.00015699,2]
[381028778,1755955849341,-435.273855,0.00015699,2]
[381028779,1755955849350,-3503.644184,0.00015699,2]
[381028780,1755955849360,-435.273855,0.00015699,2]
[381028781,1755955849369,-3503.644184,0.00015699,2]
[381028782,1755955849379,-3503.644184,0.00015699,2]
[381028783,1755955849389,-3503.644184,0.00015699,2]
[381028784,1755955849399,-1682.055688,0.00015699,2]
[381028785,1755955849408,-1121.790224,0.00015699,2]
[381028786,1755955849419,-1682.055688,0.00015699,2]
[381028787,1755955849428,-1121.790224,0.00015699,2]
[381028788,1755955849438,-1682.055688,0.00015699,2]
[381028789,1755955849447,-12000.0,0.00015699,2]
[381028790,1755955849457,-1682.055688,0.00015699,2]
[381028791,1755955849466,-1121.790224,0.00015699,2]
[381028792,1755955849475,-12000.0,0.00015699,2]
[381028793,1755955849485,-241.536099,0.00015699,2]
[381028794,1755955849494,-525.468122,0.00015699,2]
[381028795,1755955849503,-1121.790224,0.00015699,2]
[381028796,1755955849512,-12000.0,0.00015699,2]
[381028797,1755955849521,-525.468122,0.00015699,2]
[381028798,1755955849531,-12000.0,0.00015699,2]
[381028799,1755955849542,-241.536099,0.00015699,2]
[381028800,1755955849552,-525.468122,0.00015699,2]
[381028801,1755955849561,-12000.0,0.00015699,2]
[381028802,1755955849570,-241.536099,0.00015699,2]
[381028803,1755955849581,-1616.86868,0.00015699,2]
[381028804,1755955849592,-525.468122,0.00015699,2]
[381028805,1755955849601,-241.536099,0.00015699,2]
[381028806,1755955849611,-1616.86868,0.00015699,2]
[381028807,1755955849621,-1616.86868,0.00015699,2]
[381028808,1755955849631,-1616.86868,0.00015699,2]
[381028809,1755955849641,-151.0,0.00015699,2]
[381028810,1755955849651,-151.0,0.00015699,2]
[381028811,1755955849660,-2709.281135,0.00015699,2]
[381028812,1755955849669,-196.467543,0.00015699,2]
[381028813,1755955849679,-2709.281135,0.00015699,2]
[381028814,1755955849689,-2709.281135,0.00015699,2]
[381028815,1755955849698,-196.467543,0.00015699,2]
[381028816,1755955849709,-196.467543,0.00015699,2]
[381028817,1755955849719,-2709.281135,0.00015699,2]
[381028818,1755955849728,-196.467543,0.00015699,2]
[381028819,1755955849739,-3209.740139,0.00015699,2]
[381028820,1755955849748,-3209.740139,0.00015699,2]
[381028821,1755955849758,-3209.740139,0.00015699,2]
[381028822,1755955849768,-3209.740139,0.00015699,2]
[381028823,1755955849777,-151.0,0.000157,2]
[381028824,1755955849788,-151.0,0.000157,2]
[381028825,1755955849797,-1137.142783,0.000157,2]
[381028826,1755955849806,-151.0,0.000157,2]
[381028827,1755955849816,-422.006077,0.000157,2]
[381028828,1755955849826,-1137.142783,0.000157,2]
[381028829,1755955849835,-151.0,0.000157,2]
[381028830,1755955849845,-151.0,0.000157,2]
[381028831,1755955849854,-422.006077,0.000157,2]
[381028832,1755955849863,-1137.142783,0.000157,2]
[381028833,1755955849873,-422.006077,0.000157,2]
[381028834,1755955849883,-422.006077,0.000157,2]
[381028835,1755955849892,-1137.142783,0.000157,2]
[381028836,1755955849902,-2403.052317,0.000157,2]
[381028837,1755955849912,-2403.052317,0.000157,2]
[381028838,1755955849922,-2403.052317,0.000157,2]
[381028839,1755955849931,-151.0,0.000157,2]
[381028840,1755955849941,-151.0,0.000157,2]
[381028841,1755955849951,-2403.052317,0.000157,2]
[381028842,1755955849960,-151.0,0.000157,2]
[381028843,1755955849970,-151.0,0.000157,2]
[381028844,1755955849979,-151.0,0.000157,2]
[381028845,1755955849988,-151.0,0.000157,2]
[381028846,1755955849997,-151.0,0.000157,2]
[381028847,1755955850007,-151.0,0.000157,2]
[381028848,1755955850016,-174.002456,0.000157,2]
[381028849,1755955850026,-151.0,0.000157,2]
[381028850,1755955850036,-151.0,0.000157,2]
[381028851,1755955850045,-151.0,0.000157,2]
[381028852,1755955850055,-224.105475,0.000157,2]
[381028853,1755955850064,-867.141915,0.000157,2]
[381028854,1755955850074,-867.141915,0.000157,2]
[381028855,1755955850083,-151.0,0.000157,2]
[381028856,1755955850093,-151.0,0.000157,2]
[381028857,1755955850102,-867.141915,0.000157,2]
[381028858,1755955850112,-264.238574,0.000157,2]
[381028859,1755955850121,-151.0,0.000157,2]
[381028860,1755955850130,-867.141915,0.000157,2]
[381028861,1755955850140,-264.238574,0.000157,2]
[381028862,1755955850149,-151.0,0.000157,2]
[381028863,1755955850159,-264.238574,0.000157,2]
[381028864,1755955850168,-264.238574,0.000157,2]
[381028865,1755955850177,-151.0,0.000157,2]
[381028866,1755955850187,-151.0,0.000157,2]
[381028867,1755955850197,-151.0,0.000157,2]
[381028868,1755955850207,-151.0,0.000157,2]
[381028869,1755955850217,-151.0,0.000157,2]
[381028870,1755955850226,-151.0,0.000157,2]
[381028871,1755955850236,-245.222234,0.000157,2]
[381028872,1755955850246,-245.222234,0.000157,2]
[381028873,1755955850255,-245.222234,0.000157,2]
[381028874,1755955850264,-151.0,0.000157,2]
[381028875,1755955850273,-245.222234,0.000157,2]
[381028876,1755955850283,-151.0,0.000157,2]
[381028877,1755955850292,-151.0,0.000157,2]
[381028878,1755955850302,-151.0,0.000157,2]
[381028879,1755955850312,-151.0,0.000157,2]
[381028880,1755955850324,-151.0,0.000157,2]
[381028881,1755955850335,-248.758551,0.000157,2]
[381028882,1755955850345,-248.758551,0.000157,2]
[381028883,1755955850355,-151.0,0.000157,2]
[381028884,1755955850365,-248.758551,0.000157,2]
[381028885,1755955850376,-248.758551,0.000157,2]
[381028886,1755955850387,-282.18065,0.000157,2]
[381028887,1755955850397,-257.780093,0.000157,2]
[381028888,1755955850407,-257.780093,0.000157,2]
[381028889,1755955850418,-151.0,0.000157,2]
[381028890,1755955850428,-257.780093,0.000157,2]
[381028891,1755955850438,-151.0,0.000157,2]
[381028892,1755955850448,-257.780093,0.000157,2]
[381028893,1755955850460,-282.18065,0.000157,2]
[381028894,1755955850470,-282.18065,0.000157,2]
[381028895,1755955850481,-151.0,0.000157,2]
[381028896,1755955850492,-227.286665,0.000157,2]
[381028897,1755955850503,-282.18065,0.000157,2]
[381028898,1755955850513,-227.286665,0.000157,2]
[381028899,1755955850523,-2051.600279,0.000157,2]
[381028900,1755955850534,-151.0,0.000157,2]
[381028901,1755955850549,-227.286665,0.000157,2]
[381028902,1755955850560,-2051.600279,0.000157,2]
[381028903,1755955850570,-227.286665,0.000157,2]
[381028904,1755955850583,-2051.600279,0.000157,2]
[381028905,1755955850594,-2051.600279,0.000157,2]
[381028906,1755955850604,-767.820458,0.000157,2]
[381028907,1755955850616,-767.820458,0.000157,2]
[381028908,1755955850627,-767.820458,0.000157,2]
[381028909,1755955850637,-425.989063,0.000157,2]
[381028910,1755955850647,-767.820458,0.000157,2]
[381028911,1755955850657,-425.989063,0.000157,2]
[381028912,1755955850668,-425.989063,0.000157,2]
[381028913,1755955850678,-151.0,0.000157,2]
[381028914,1755955850689,-425.989063,0.000157,2]
[381028915,1755955850699,-1814.31,0.00015715,2]
[381028916,1755955850710,-2529.36,0.00015753,2]
[381028917,1755955850720,-1500.0,0.00015758,2]
[381028918,1755955850730,-1500.0,0.00015758,2]
[381028919,1755955850740,-1500.0,0.00015758,2]
[381028920,1755955850751,-1500.0,0.00015758,2]
[381028921,1755955850761,-1500.0,0.00015758,2]
[381028922,1755955850771,-1416.25293588,0.00015758,2]
[381028923,1755955850782,-500.0,0.00015822,2]
[381028924,1755955850792,-1962.55953,0.0001583,2]
[381028925,1755955850802,-400.0,0.0001589,2]
[381028926,1755955850812,-247.69514895,0.000159,2]
[381028927,1755955850824,-2000.0,0.00016,2]
[381028928,1755955850835,-2000.0,0.00016,2]
[381028929,1755955850845,-2000.0,0.00016,2]
[381028930,1755955850856,-200.0,0.00016,7]
[381028931,1755955850867,-25000.0,0.00016,5]
[381028932,1755955850878,-554.04627419,0.00016,2]
[381028933,1755955850888,-2433.41713233,0.00016,2]
[381028934,1755955850898,-1506.25,0.00016,2]
[381028935,1755955850909,-151.0,0.00016,2]
[381028936,1755955850920,-151.0,0.00016,2]
[381028937,1755955850930,-151.0,0.00016,2]
[381028938,1755955850940,-223.937952,0.00016,2]
[381028939,1755955850951,-169.468754,0.00016,2]
[381028940,1755955850961,-169.468754,0.00016,2]
[381028941,1755955850971,-151.0,0.00016,2]
[381028942,1755955850981,-169.468754,0.00016,2]
[381028943,1755955850992,-174.11334,0.00016,2]
[381028944,1755955851002,-169.468754,0.00016,2]
[381028945,1755955851012,-151.0,0.00016,2]
[381028946,1755955851023,-151.0,0.00016,2]
[381028947,1755955851034,-151.0,0.00016,2]
[381028948,1755955851044,-151.0,0.00016,2]
[381028949,1755955851054,-151.0,0.00016,2]
[381028950,1755955851065,-151.0,0.00016,2]
[381028951,1755955851076,-267.5798,0.00016,2]
[381028952,1755955851087,-151.0,0.00016,2]
[381028953,1755955851097,-151.0,0.00016,2]
[381028954,1755955851108,-151.0,0.00016,2]
[381028955,1755955851119,-151.0,0.00016,2]
[381028956,1755955851130,-228.517504,0.00016,2]
[381028957,1755955851140,-151.0,0.00016,2]
[381028958,1755955851151,-151.0,0.00016,2]
[381028959,1755955851161,-644.274379,0.00016,2]
[381028960,1755955851171,-151.0,0.00016,2]
[381028961,1755955851181,-644.274379,0.00016,2]
[381028962,1755955851192,-151.0,0.00016,2]
[381028963,1755955851203,-644.274379,0.00016,2]
[381028964,1755955851215,-232.933054,0.00016,2]
[381028965,1755955851225,-644.274379,0.00016,2]
[381028966,1755955851235,-458.60200496,0.00016,3]
[381028967,1755955851245,-200.302847,0.00016,2]
[381028968,1755955851256,-1814.31,0.00016003,2]
[381028969,1755955851266,-169.36659393,0.00016016,2]
[381028970,1755955851276,-3299.3701375,0.0001602,2]
[381028971,1755955851286,-500.0,0.00016062,2]
[381028972,1755955851296,-2298.84656262,0.00016073,2]
[381028973,1755955851307,-6238.034896,0.00016074,2]
[381028974,1755955851317,-2298.84656262,0.00016075,2]
[381028975,1755955851329,-4597.69312537,0.00016075,2]
[381028976,1755955851339,-151.0,0.00016076,2]
[381028977,1755955851350,-2957.35135475,0.00016076,2]
[381028978,1755955851360,-1458.8350686,0.00016076,2]
[381028979,1755955851371,-385292.02293103,0.00016077,2]
[381028980,1755955851381,-385292.02293103,0.00016078,2]
[381028981,1755955851392,-3356.7131887,0.00016078,2]
[381028982,1755955851402,-240.71210123,0.00016079,2]
[381028983,1755955851412,-12875.9563765,0.0001608,2]
[381028984,1755955851423,-941.60062995,0.00016081,2]
[381028985,1755955851433,-5150.38255062,0.00016082,2]
[381028986,1755955851443,-12875.9563765,0.00016083,2]
[381028987,1755955851454,-385292.02293103,0.00016083,2]
[381028988,1755955851472,-323659.57732145,0.00016084,2]
[381028989,1755955854848,-169.289978,0.00012,2]
[381028990,1755955854858,-147.8666861,0.00013644,2]
[381028991,1755955856019,-970.3145064,0.00013644,2]
[381028992,1755955856274,-325.002456,0.00013644,2]
[381028993,1755955930031,500.0,0.00028767,120]
[381028995,1755956048367,2024.48116999,7.945e-05,2]
[381028996,1755956048389,11284.06883001,7.945e-05,2]
[381028999,1755956107206,169.0,0.00026408,120]
[381029000,1755956108558,169.0,0.00027729,120]
[381029003,1755956406425,198.0,0.00025779,120]
[381029004,1755956407276,198.0,0.00027068,120]
[381029005,1755956408697,198.0,0.00028422,120]
[381029006,1755956568506,300.0,0.00028,120]
[381029007,1755956576009,300.0,0.00028,120]
[381029008,1755956579850,300.0,0.00028,120]
[381029009,1755956582834,300.0,0.00028,120]
[381029010,1755956593085,212.0,0.00028,120]
[381029011,1755956678016,-689.0,0.00032457,120]
[381029012,1755956678042,-423.5314226,0.00032457,120]
[381029013,1755956678066,-460.0,0.00032457,120]
[381029014,1755956678090,-316.0,0.00032457,60]
[381029015,1755956678114,-968.28945915,0.00032457,30]
[381029016,1755956678139,-467.34924151,0.00032457,120]
[381029017,1755956678163,-689.0,0.00032457,120]
[381029018,1755956678187,-500.0,0.00032457,120]
[381029019,1755956678214,-500.0,0.00032457,120]
[381029020,1755956678238,-500.0,0.00032457,120]
[381029021,1755956678263,-500.0,0.00032457,120]
[381029022,1755956678289,-500.0,0.00032457,120]
[381029023,1755956678313,-1043.31689212,0.00032457,30]
[381029024,1755956678338,-500.0,0.00032457,120]
[381029025,1755956678363,-220.29565702,0.00032457,120]
[381029026,1755956678387,-917.12395482,0.00032457,120]
[381029027,1755956678410,-744.86571851,0.00032457,120]
[381029028,1755956678433,-701.23623572,0.00032457,30]
[381029029,1755956678456,-997.0,0.00032457,30]
[381029030,1755956678478,-1291.39538071,0.00032457,120]
[381029031,1755956678502,-185.42488326,0.00032457,120]
[381029032,1755956678525,-445.95713541,0.00032457,30]
[381029033,1755956678876,-817.46473574,0.00032457,30]
[381029034,1755956678904,-532.10635749,0.00032457,120]
[381029035,1755956678928,-397.69694175,0.00032457,120]
[381029036,1755956678957,-1000.0,0.00032457,120]
[381029037,1755956678982,-2163.00073248,0.00032457,120]
[381029038,1755956679008,-461.13550883,0.00032457,120]
[381029039,1755956679032,-279.01205819,0.00032457,30]
[381029040,1755956679056,-911.32475612,0.00032457,30]
[381029041,1755956679080,-177.38841239,0.00032457,110]
[381029042,1755956679104,-1000.0,0.00032457,30]
[381029043,1755956679128,-3000.0,0.00032457,120]
[381029044,1755956679151,-1000.0,0.00032457,30]
[381029045,1755956679175,-1042.62795815,0.00032457,120]
[381029046,1755956679204,-576.06049607,0.00032457,120]
[381029047,1755956679228,-210.36992872,0.00032457,30]
[381029048,1755956679254,-721.54490905,0.00032457,120]
[381029049,1755956679278,-1660.1172818,0.00032457,75]
[381029050,1755956679302,-544.39094734,0.00032457,30]
[381029051,1755956679325,-999.34592103,0.00032457,120]
[381029052,1755956679350,-179.8020553,0.00032457,30]
[381029053,1755956679374,-275.54237983,0.00032457,30]
[381029054,1755956679397,-1369.89305529,0.00032457,30]
[381029055,1755956679421,-837.65634792,0.00032457,30]
[381029056,1755956679445,-1821.07361569,0.00032457,30]
[381029057,1755956679470,-153.21906746,0.00032457,120]
[381029058,1755956679495,-210.18833215,0.00032457,31]
[381029059,1755956679521,-1000.0,0.00032457,60]
[381029060,1755956679545,-296.79568432,0.00032457,60]
[381029061,1755956679570,-1514.94027032,0.00032457,30]
[381029062,1755956679594,-1380.96706001,0.00032457,30]
[381029063,1755956679618,-151.97846969,0.00032457,30]
[381029064,1755956679642,-307.04674393,0.00032457,120]
[381029065,1755956679666,-937.1699842,0.00032457,120]
[381029066,1755956679691,-1021.38162079,0.00032457,120]
[381029067,1755956679716,-322.92002707,0.00032457,120]
[381029068,1755956679740,-150.00095986,0.00032457,120]
[381029069,1755956679764,-219.85475911,0.00032457,120]
[381029070,1755956679787,-173.51964053,0.00032457,120]
[381029071,1755956679812,-270.59516533,0.00032457,30]
[381029072,1755956679836,-610.40436313,0.00032457,120]
[381029073,1755956679861,-547.12134029,0.00032457,120]
[381029074,1755956679885,-529.2058698,0.00032457,120]
[381029075,1755956679912,-818.77820594,0.00032457,120]
[381029076,1755956679943,-442.97400506,0.00032457,30]
[381029077,1755956679969,-1037.71789168,0.00032457,30]
[381029078,1755956679994,-503.68318191,0.00032457,120]
[381029079,1755956680020,-997.00740124,0.00032457,120]
[381029080,1755956680045,-396.73125372,0.00032457,120]
[381029081,1755956680070,-1000.0,0.00032457,120]
[381029082,1755956680096,-1682.9087911,0.00032457,120]
[381029083,1755956680121,-1013.05591612,0.00032457,120]
[381029084,1755956680147,-486.30399305,0.00032457,60]
[381029085,1755956680172,-2009.07312723,0.00032457,30]
[381029086,1755956680197,-1207.68919663,0.00032457,30]
[381029087,1755956680223,-361.09891249,0.00032457,30]
[381029088,1755956680247,-1164.6890166,0.00032457,30]
[381029089,1755956680271,-263.72958652,0.00032457,120]
[381029090,1755956680294,-463.43659583,0.00032457,120]
[381029091,1755956680318,-397.79511171,0.00032457,120]
[381029092,1755956680343,-661.82168632,0.00032457,60]
[381029093,1755956680375,-821.77122803,0.00032457,120]
[381029094,1755956680401,-166.94739948,0.00032457,120]
[381029095,1755956680427,-210.58133716,0.00032457,120]
[381029096,1755956680452,-359.75241405,0.00032457,120]
[381029097,1755956680477,-1000.0,0.00032457,90]
[381029098,1755956680509,-843.299999,0.00032457,90]
[381029099,1755956680535,-1000.0,0.00032457,120]
[381029100,1755956680565,-843.299999,0.00032457,120]
[381029101,1755956680593,-1000.0,0.00032457,60]
[381029102,1755956680617,-426.4641,0.00032457,60]
[381029103,1755956680645,-1000.0,0.00032457,30]
[381029104,1755956680670,-1000.0,0.00032457,30]
[381029105,1755956680695,-500.0,0.00032457,120]
[381029106,1755956680719,-500.0,0.00032457,120]
[381029107,1755956680744,-1000.0,0.00032457,60]
[381029108,1755956680769,-500.0,0.00032457,120]
[381029109,1755956680794,-500.0,0.00032457,120]
[381029110,1755956680819,-448.70761712,0.00032457,120]
[381029111,1755956680844,-1000.0,0.00032457,30]
[381029112,1755956680868,-1000.0,0.00032457,30]
[381029113,1755956680893,-1000.0,0.00032457,30]
[381029114,1755956680922,-1000.0,0.00032457,30]
[381029115,1755956680946,-1000.0,0.00032457,30]
[381029116,1755956680972,-1000.0,0.00032457,30]
[381029117,1755956680996,-1000.0,0.00032457,60]
[381029118,1755956681020,-1000.0,0.00032457,30]
[381029119,1755956681045,-1000.0,0.00032457,30]
[381029120,1755956681069,-1000.0,0.00032457,30]
[381029121,1755956681093,-1000.0,0.00032457,30]
[381029122,1755956681117,-1000.0,0.00032457,30]
[381029123,1755956681141,-1000.0,0.00032457,30]
[381029124,1755956681166,-1000.0,0.00032457,30]
[381029125,1755956681190,-867.6434569,0.00032457,30]
[381029126,1755956681216,-1000.0,0.00032457,30]
[381029127,1755956681240,-1000.0,0.00032457,30]
[381029128,1755956681611,-1000.0,0.00032457,30]
[381029129,1755956681641,-352.01002772,0.00032457,30]
[381029130,1755956681667,-1000.0,0.00032457,30]
[381029131,1755956681691,-870.88462691,0.00032457,30]
[381029132,1755956681720,-1000.0,0.00032457,60]
[381029133,1755956681746,-1000.0,0.00032457,60]
[381029134,1755956681772,-1000.0,0.00032457,120]
[381029135,1755956681797,-1000.0,0.00032457,30]
[381029136,1755956681822,-1000.0,0.00032457,60]
[381029137,1755956681847,-1000.0,0.00032457,60]
[381029138,1755956681873,-1000.0,0.00032457,60]
[381029139,1755956681905,-1000.0,0.00032457,30]
[381029140,1755956681931,-1000.0,0.00032457,30]
[381029141,1755956681957,-1000.0,0.00032457,60]
[381029142,1755956681983,-1000.0,0.00032457,30]
[381029143,1755956682009,-1000.0,0.00032457,60]
[381029144,1755956682035,-1000.0,0.00032457,120]
[381029145,1755956682061,-212.0,0.00032457,30]
[381029146,1755956682085,-212.0,0.00032457,30]
[381029147,1755956682110,-212.0,0.00032457,30]
[381029148,1755956682134,-1084.53,0.00032457,30]
[381029149,1755956682161,-1762.52,0.00032457,120]
[381029150,1755956682189,-1762.52,0.00032457,120]
[381029151,1755956682217,-1762.52,0.00032457,120]
[381029152,1755956682242,-1762.52,0.00032457,120]
[381029153,1755956682268,-1762.52,0.00032457,120]
[381029154,1755956682295,-1762.52,0.00032457,120]
[381029155,1755956682321,-1762.52,0.00032457,120]
[381029156,1755956682347,-1762.52,0.00032457,120]
[381029157,1755956682373,-1762.52,0.00032457,120]
[381029158,1755956682399,-1762.52,0.00032457,120]
[381029159,1755956682426,-1762.52,0.00032457,120]
[381029160,1755956682453,-1762.52,0.00032457,120]
[381029161,1755956682478,-1762.52,0.00032457,120]